[Event "Titled Tuesday Blitz April 25 Early 2023"]
[White "Milikow, Yoav"]
[Black "Andreikin, Dmitry"]
[WhiteFideId "2822237"]
[BlackFideId "4158814"]
[WhiteElo "2410"]
[BlackElo "2736"]
[Result "1-0"]
[Round "03"]
[TimeControl "180+2"]
[Date "2023.04.25"]
[WhiteClock "0:00:05"]
[BlackClock "0:00:03"]

1. d4 {[%clk 0:02:59]}  Nf6 {[%clk 0:02:59]} 2. c4 {[%clk 0:02:58]}  e6 {[%clk 0:02:59]} 3. Nc3 {[%clk 0:02:58]}  Bb4 {[%clk 0:02:58]} 4. Qc2 {[%clk 0:02:59]}  c5 {[%clk 0:02:56]} 5. dxc5 {[%clk 0:02:58]}  Na6 {[%clk 0:02:57]} 6. Nf3 {[%clk 0:02:55]}  Nxc5 {[%clk 0:02:56]} 7. g3 {[%clk 0:02:56]}  b6 {[%clk 0:02:54]} 8. Bg2 {[%clk 0:02:55]}  Bb7 {[%clk 0:02:54]} 9. O-O {[%clk 0:02:56]}  O-O {[%clk 0:02:54]} 10. Nb5 {[%clk 0:02:55]}  Be4 {[%clk 0:02:52]} 11. Qd1 {[%clk 0:02:55]}  Nb7 {[%clk 0:02:52]} 12. Bf4 {[%clk 0:02:44]}  a6 {[%clk 0:02:51]} 13. Nd6 {[%clk 0:02:33]}  Bc6 {[%clk 0:02:44]} 14. a3 {[%clk 0:02:24]}  Bxd6 {[%clk 0:02:42]} 15. Bxd6 {[%clk 0:02:25]}  Nxd6 {[%clk 0:02:42]} 16. Qxd6 {[%clk 0:02:26]}  Ne4 {[%clk 0:02:43]} 17. Qf4 {[%clk 0:02:19]}  Qf6 {[%clk 0:02:32]} 18. Ne5 {[%clk 0:02:05]}  Nc5 {[%clk 0:01:43]} 19. Bxc6 {[%clk 0:01:53]}  dxc6 {[%clk 0:01:40]} 20. b4 {[%clk 0:01:32]}  Qxf4 {[%clk 0:01:25]} 21. gxf4 {[%clk 0:01:33]}  Nb3 {[%clk 0:01:24]} 22. Rad1 {[%clk 0:01:32]}  c5 {[%clk 0:01:24]} 23. Rd3 {[%clk 0:01:18]}  Nd4 {[%clk 0:01:23]} 24. e3 {[%clk 0:01:17]}  Nf5 {[%clk 0:01:04]} 25. Nd7 {[%clk 0:01:08]}  Rfe8 {[%clk 0:00:39]} 26. Nxb6 {[%clk 0:01:06]}  Ra7 {[%clk 0:00:40]} 27. Rfd1 {[%clk 0:00:51]}  cxb4 {[%clk 0:00:36]} 28. axb4 {[%clk 0:00:45]}  Kf8 {[%clk 0:00:35]} 29. Rd7 {[%clk 0:00:36]}  Rxd7 {[%clk 0:00:33]} 30. Rxd7 {[%clk 0:00:36]}  Ne7 {[%clk 0:00:26]} 31. Rc7 {[%clk 0:00:31]}  Rd8 {[%clk 0:00:24]} 32. Kg2 {[%clk 0:00:29]}  Rd2 {[%clk 0:00:19]} 33. Nd7+ {[%clk 0:00:22]}  Ke8 {[%clk 0:00:19]} 34. Nc5 {[%clk 0:00:23]}  Nf5 {[%clk 0:00:19]} 35. Kf1 {[%clk 0:00:17]}  Ra2 {[%clk 0:00:16]} 36. Ra7 {[%clk 0:00:16]}  Nd6 {[%clk 0:00:16]} 37. Nxa6 {[%clk 0:00:14]}  Rb2 {[%clk 0:00:13]} 38. c5 {[%clk 0:00:12]}  Ne4 {[%clk 0:00:13]} 39. b5 {[%clk 0:00:12]}  Rxf2+ {[%clk 0:00:12]} 40. Ke1 {[%clk 0:00:12]}  Rxh2 {[%clk 0:00:10]} 41. b6 {[%clk 0:00:12]}  Rh1+ {[%clk 0:00:10]} 42. Ke2 {[%clk 0:00:12]}  Rb1 {[%clk 0:00:09]} 43. b7 {[%clk 0:00:11]}  h5 {[%clk 0:00:08]} 44. b8=Q+ {[%clk 0:00:07]}  Rxb8 {[%clk 0:00:09]} 45. Nxb8 {[%clk 0:00:08]}  Nxc5 {[%clk 0:00:10]} 46. Ra5 {[%clk 0:00:08]}  Ne4 {[%clk 0:00:09]} 47. Kf3 {[%clk 0:00:07]}  Nd2+ {[%clk 0:00:09]} 48. Kg3 {[%clk 0:00:07]}  Nc4 {[%clk 0:00:10]} 49. Ra8 {[%clk 0:00:07]}  Nxe3 {[%clk 0:00:09]} 50. Kh4 {[%clk 0:00:06]}  Nd5 {[%clk 0:00:07]} 51. Nc6+ {[%clk 0:00:06]}  Kd7 {[%clk 0:00:07]} 52. Ne5+ {[%clk 0:00:07]}  Ke7 {[%clk 0:00:06]} 53. Ra7+ {[%clk 0:00:07]}  Kd6 {[%clk 0:00:07]} 54. Nxf7+ {[%clk 0:00:07]}  Kc5 {[%clk 0:00:07]} 55. Kg5 {[%clk 0:00:06]}  h4 {[%clk 0:00:06]} 56. Ra3 {[%clk 0:00:06]}  Kd4 {[%clk 0:00:06]} 57. Rh3 {[%clk 0:00:05]}  Nc3 {[%clk 0:00:06]} 58. Rxh4 {[%clk 0:00:04]}  Ne4+ {[%clk 0:00:06]} 59. Kg6 {[%clk 0:00:05]}  Ke3 {[%clk 0:00:07]} 60. Ng5 {[%clk 0:00:05]}  Ng3 {[%clk 0:00:07]} 61. Rh3 {[%clk 0:00:05]}  Kxf4 {[%clk 0:00:07]} 62. Nxe6+ {[%clk 0:00:05]}  Kg4 {[%clk 0:00:08]} 63. Rh7 {[%clk 0:00:04]}  Nf5 {[%clk 0:00:06]} 64. Nxg7 {[%clk 0:00:04]}  Nh4+ {[%clk 0:00:07]} 65. Kf7 {[%clk 0:00:04]}  Nf3 {[%clk 0:00:07]} 66. Rh1 {[%clk 0:00:04]}  Ng5+ {[%clk 0:00:07]} 67. Kg6 {[%clk 0:00:04]}  Ne4 {[%clk 0:00:08]} 68. Re1 {[%clk 0:00:04]}  Nd2 {[%clk 0:00:08]} 69. Nf5 {[%clk 0:00:04]}  Nf3 {[%clk 0:00:08]} 70. Re4+ {[%clk 0:00:04]}  Kh3 {[%clk 0:00:08]} 71. Rb4 {[%clk 0:00:05]}  Kg2 {[%clk 0:00:07]} 72. Kh5 {[%clk 0:00:05]}  Kf2 {[%clk 0:00:06]} 73. Nh4 {[%clk 0:00:04]}  Ne5 {[%clk 0:00:06]} 74. Re4 {[%clk 0:00:04]}  Nd3 {[%clk 0:00:06]} 75. Kg5 {[%clk 0:00:04]}  Nc5 {[%clk 0:00:06]} 76. Re5 {[%clk 0:00:04]}  Nd3 {[%clk 0:00:07]} 77. Re7 {[%clk 0:00:05]}  Nc5 {[%clk 0:00:06]} 78. Ng6 {[%clk 0:00:05]}  Nd3 {[%clk 0:00:06]} 79. Nf4 {[%clk 0:00:05]}  Nc5 {[%clk 0:00:06]} 80. Kg4 {[%clk 0:00:05]}  Nb3 {[%clk 0:00:06]} 81. Re2+ {[%clk 0:00:05]}  Kf1 {[%clk 0:00:06]} 82. Kg3 {[%clk 0:00:06]}  Nd4 {[%clk 0:00:07]} 83. Re5 {[%clk 0:00:05]}  Nc2 {[%clk 0:00:06]} 84. Ng2 {[%clk 0:00:05]}  Kg1 {[%clk 0:00:05]} 85. Re2 {[%clk 0:00:05]}  Kh1 {[%clk 0:00:02]} 86. Rxc2 {[%clk 0:00:04]}  Kg1 {[%clk 0:00:03]} 87. Rc1# {[%clk 0:00:05]} 1-0


[Site "https://www.chess.com"]

[Event "Titled Tuesday Blitz April 25 Early 2023"]
[White "Martinez Alcantara, Jose Eduardo"]
[Black "Mahdavi, Reza"]
[WhiteFideId "3805662"]
[BlackFideId "12595926"]
[WhiteElo "2711"]
[BlackElo "2357"]
[Result "1/2-1/2"]
[Round "03"]
[TimeControl "180+2"]
[Date "2023.04.25"]
[WhiteClock "0:00:47"]
[BlackClock "0:00:52"]

1. e4 {[%clk 0:02:59]}  c5 {[%clk 0:02:59]} 2. Nf3 {[%clk 0:02:57]}  e6 {[%clk 0:02:59]} 3. c3 {[%clk 0:02:55]}  Nf6 {[%clk 0:02:49]} 4. Bd3 {[%clk 0:02:55]}  d5 {[%clk 0:02:49]} 5. e5 {[%clk 0:02:54]}  Nfd7 {[%clk 0:02:49]} 6. Bc2 {[%clk 0:02:55]}  c4 {[%clk 0:02:50]} 7. d4 {[%clk 0:02:54]}  cxd3 {[%clk 0:02:51]} 8. Bxd3 {[%clk 0:02:55]}  Nc6 {[%clk 0:02:52]} 9. Qe2 {[%clk 0:02:55]}  f6 {[%clk 0:02:46]} 10. exf6 {[%clk 0:02:48]}  Nxf6 {[%clk 0:02:47]} 11. Bf4 {[%clk 0:02:43]}  Bd6 {[%clk 0:02:46]} 12. Bxd6 {[%clk 0:02:15]}  Qxd6 {[%clk 0:02:47]} 13. Bb5 {[%clk 0:02:14]}  O-O {[%clk 0:02:35]} 14. Bxc6 {[%clk 0:02:09]}  bxc6 {[%clk 0:02:36]} 15. Qe5 {[%clk 0:02:08]}  Qe7 {[%clk 0:02:28]} 16. O-O {[%clk 0:02:05]}  Nd7 {[%clk 0:02:26]} 17. Qc7 {[%clk 0:01:55]}  Ba6 {[%clk 0:02:18]} 18. Re1 {[%clk 0:01:50]}  Rac8 {[%clk 0:02:14]} 19. Qg3 {[%clk 0:01:48]}  Nc5 {[%clk 0:02:07]} 20. Nbd2 {[%clk 0:01:37]}  Nd3 {[%clk 0:01:53]} 21. Re3 {[%clk 0:01:37]}  Nxb2 {[%clk 0:01:45]} 22. Rae1 {[%clk 0:01:37]}  Rf6 {[%clk 0:01:42]} 23. Nd4 {[%clk 0:01:37]}  Qf7 {[%clk 0:01:10]} 24. Nxe6 {[%clk 0:01:26]}  Nd3 {[%clk 0:01:07]} 25. Ng5 {[%clk 0:01:24]}  Qg6 {[%clk 0:01:05]} 26. Rf1 {[%clk 0:00:48]}  Nf4 {[%clk 0:00:54]} 27. Rfe1 {[%clk 0:00:48]}  Nd3 {[%clk 0:00:53]} 28. Rf1 {[%clk 0:00:47]}  Nf4 {[%clk 0:00:52]} 29. Rfe1 {[%clk 0:00:47]}  Nd3 {[%clk 0:00:52]} 1/2-1/2


[Site "https://www.chess.com"]

[Event "Titled Tuesday Blitz April 25 Early 2023"]
[White "Harshavardhan G B"]
[Black "Lazavik, Denis"]
[WhiteFideId "25059009"]
[BlackFideId "13515110"]
[WhiteElo "2323"]
[BlackElo "2560"]
[Result "1/2-1/2"]
[Round "03"]
[TimeControl "180+2"]
[Date "2023.04.25"]
[WhiteClock "0:00:04"]
[BlackClock "0:00:08"]

1. e4 {[%clk 0:03:00]}  e5 {[%clk 0:03:00]} 2. Nc3 {[%clk 0:02:58]}  Nf6 {[%clk 0:03:00]} 3. Bc4 {[%clk 0:02:56]}  Bc5 {[%clk 0:02:58]} 4. d3 {[%clk 0:02:55]}  d6 {[%clk 0:02:57]} 5. h3 {[%clk 0:02:52]}  Nc6 {[%clk 0:02:53]} 6. Nge2 {[%clk 0:02:51]}  Be6 {[%clk 0:02:43]} 7. Bb3 {[%clk 0:02:37]}  h6 {[%clk 0:02:42]} 8. Be3 {[%clk 0:02:36]}  Bxe3 {[%clk 0:01:37]} 9. fxe3 {[%clk 0:02:35]}  d5 {[%clk 0:01:32]} 10. O-O {[%clk 0:02:11]}  dxe4 {[%clk 0:01:31]} 11. Bxe6 {[%clk 0:02:10]}  fxe6 {[%clk 0:01:31]} 12. Nxe4 {[%clk 0:01:59]}  Nxe4 {[%clk 0:01:31]} 13. dxe4 {[%clk 0:01:59]}  Qxd1 {[%clk 0:01:31]} 14. Raxd1 {[%clk 0:01:59]}  Ke7 {[%clk 0:01:32]} 15. a3 {[%clk 0:01:51]}  Rad8 {[%clk 0:01:24]} 16. Nc1 {[%clk 0:01:51]}  Rxd1 {[%clk 0:00:59]} 17. Rxd1 {[%clk 0:01:50]}  Nb8 {[%clk 0:00:59]} 18. Nd3 {[%clk 0:01:46]}  Nd7 {[%clk 0:01:00]} 19. a4 {[%clk 0:01:42]}  Rd8 {[%clk 0:00:58]} 20. Ra1 {[%clk 0:01:35]}  Nf6 {[%clk 0:00:54]} 21. Nxe5 {[%clk 0:01:27]}  Rd2 {[%clk 0:00:53]} 22. Ng6+ {[%clk 0:01:21]}  Kf7 {[%clk 0:00:51]} 23. Ne5+ {[%clk 0:01:20]}  Ke8 {[%clk 0:00:50]} 24. Rc1 {[%clk 0:00:56]}  Nxe4 {[%clk 0:00:49]} 25. Nf3 {[%clk 0:00:55]}  Rd5 {[%clk 0:00:43]} 26. Kf1 {[%clk 0:00:50]}  Ke7 {[%clk 0:00:37]} 27. Ke1 {[%clk 0:00:48]}  a5 {[%clk 0:00:26]} 28. Rd1 {[%clk 0:00:45]}  Rxd1+ {[%clk 0:00:25]} 29. Kxd1 {[%clk 0:00:46]}  Kd6 {[%clk 0:00:26]} 30. Ke2 {[%clk 0:00:46]}  Kd5 {[%clk 0:00:26]} 31. Nd4 {[%clk 0:00:43]}  Nc5 {[%clk 0:00:25]} 32. b3 {[%clk 0:00:39]}  c6 {[%clk 0:00:26]} 33. Kd2 {[%clk 0:00:24]}  g6 {[%clk 0:00:25]} 34. h4 {[%clk 0:00:23]}  e5 {[%clk 0:00:20]} 35. Ne2 {[%clk 0:00:19]}  Ne4+ {[%clk 0:00:19]} 36. Kd3 {[%clk 0:00:19]}  Nf2+ {[%clk 0:00:18]} 37. Kd2 {[%clk 0:00:19]}  Ne4+ {[%clk 0:00:09]} 38. Kd3 {[%clk 0:00:19]}  Nc5+ {[%clk 0:00:09]} 39. Kd2 {[%clk 0:00:19]}  Ke6 {[%clk 0:00:07]} 40. Ng3 {[%clk 0:00:10]}  b5 {[%clk 0:00:08]} 41. axb5 {[%clk 0:00:09]}  cxb5 {[%clk 0:00:09]} 42. h5 {[%clk 0:00:09]}  gxh5 {[%clk 0:00:07]} 43. Nxh5 {[%clk 0:00:10]}  Kf5 {[%clk 0:00:07]} 44. Ng7+ {[%clk 0:00:09]}  Ke4 {[%clk 0:00:05]} 45. Ne8 {[%clk 0:00:09]}  Kd5 {[%clk 0:00:05]} 46. Nc7+ {[%clk 0:00:09]}  Kc6 {[%clk 0:00:05]} 47. Ne8 {[%clk 0:00:09]}  a4 {[%clk 0:00:06]} 48. bxa4 {[%clk 0:00:08]}  bxa4 {[%clk 0:00:06]} 49. Kc3 {[%clk 0:00:09]}  h5 {[%clk 0:00:04]} 50. Kb4 {[%clk 0:00:08]}  h4 {[%clk 0:00:03]} 51. Ng7 {[%clk 0:00:08]}  a3 {[%clk 0:00:02]} 52. Kxa3 {[%clk 0:00:07]}  Kd5 {[%clk 0:00:03]} 53. Nf5 {[%clk 0:00:07]}  Ke4 {[%clk 0:00:03]} 54. Nxh4 {[%clk 0:00:07]}  Kxe3 {[%clk 0:00:04]} 55. g4 {[%clk 0:00:07]}  Kf4 {[%clk 0:00:04]} 56. Ng6+ {[%clk 0:00:07]}  Kxg4 {[%clk 0:00:03]} 57. Nxe5+ {[%clk 0:00:07]}  Kf5 {[%clk 0:00:04]} 58. Nc6 {[%clk 0:00:07]}  Ke6 {[%clk 0:00:04]} 59. Kb4 {[%clk 0:00:07]}  Kd6 {[%clk 0:00:05]} 60. Nd4 {[%clk 0:00:08]}  Kd5 {[%clk 0:00:05]} 61. Nb5 {[%clk 0:00:07]}  Nd7 {[%clk 0:00:04]} 62. Nc3+ {[%clk 0:00:07]}  Kc6 {[%clk 0:00:05]} 63. Ne4 {[%clk 0:00:07]}  Ne5 {[%clk 0:00:05]} 64. Nd2 {[%clk 0:00:06]}  Kd5 {[%clk 0:00:05]} 65. Kc3 {[%clk 0:00:06]}  Kc6 {[%clk 0:00:05]} 66. Nb3 {[%clk 0:00:07]}  Nd7 {[%clk 0:00:05]} 67. Kd4 {[%clk 0:00:07]}  Nb6 {[%clk 0:00:05]} 68. Na5+ {[%clk 0:00:06]}  Kb5 {[%clk 0:00:06]} 69. Nb7 {[%clk 0:00:06]}  Kc6 {[%clk 0:00:07]} 70. Nd8+ {[%clk 0:00:07]}  Kd7 {[%clk 0:00:07]} 71. Nf7 {[%clk 0:00:07]}  Kc6 {[%clk 0:00:07]} 72. Ne5+ {[%clk 0:00:07]}  Kb5 {[%clk 0:00:07]} 73. c3 {[%clk 0:00:06]}  Na4 {[%clk 0:00:06]} 74. c4+ {[%clk 0:00:06]}  Kb6 {[%clk 0:00:07]} 75. Kd5 {[%clk 0:00:05]}  Kc7 {[%clk 0:00:07]} 76. Nd3 {[%clk 0:00:04]}  Nb6+ {[%clk 0:00:08]} 77. Kd4 {[%clk 0:00:04]}  Nxc4 {[%clk 0:00:08]} 1/2-1/2


[Site "https://www.chess.com"]

[Event "Titled Tuesday Blitz April 25 Early 2023"]
[White "Duda, Jan-Krzysztof"]
[Black "Csonka, Balazs"]
[WhiteFideId "1170546"]
[BlackFideId "742910"]
[WhiteElo "2790"]
[BlackElo "2404"]
[Result "1-0"]
[Round "03"]
[TimeControl "180+2"]
[Date "2023.04.25"]
[WhiteClock "0:00:12"]
[BlackClock "0:00:01"]

1. d4 {[%clk 0:03:00]}  d5 {[%clk 0:02:56]} 2. c4 {[%clk 0:03:01]}  e6 {[%clk 0:02:56]} 3. g3 {[%clk 0:03:01]}  dxc4 {[%clk 0:02:53]} 4. Bg2 {[%clk 0:03:01]}  c5 {[%clk 0:02:53]} 5. Nf3 {[%clk 0:03:00]}  Nc6 {[%clk 0:02:50]} 6. Qa4 {[%clk 0:02:56]}  cxd4 {[%clk 0:02:48]} 7. Nxd4 {[%clk 0:02:40]}  Qxd4 {[%clk 0:02:49]} 8. Bxc6+ {[%clk 0:02:40]}  Bd7 {[%clk 0:02:49]} 9. Be3 {[%clk 0:02:39]}  Qd6 {[%clk 0:02:18]} 10. Bxd7+ {[%clk 0:02:39]}  Qxd7 {[%clk 0:02:19]} 11. Qxc4 {[%clk 0:02:39]}  Nf6 {[%clk 0:01:31]} 12. Nc3 {[%clk 0:02:34]}  Rc8 {[%clk 0:01:19]} 13. Qb3 {[%clk 0:02:34]}  Bc5 {[%clk 0:01:19]} 14. Bg5 {[%clk 0:01:58]}  Be7 {[%clk 0:01:03]} 15. O-O {[%clk 0:01:53]}  O-O {[%clk 0:01:02]} 16. e4 {[%clk 0:01:42]}  h6 {[%clk 0:01:00]} 17. Be3 {[%clk 0:01:42]}  Bc5 {[%clk 0:00:50]} 18. e5 {[%clk 0:01:32]}  Ng4 {[%clk 0:00:37]} 19. Bxc5 {[%clk 0:01:33]}  Rxc5 {[%clk 0:00:38]} 20. Qb4 {[%clk 0:01:33]}  Rxc3 {[%clk 0:00:23]} 21. Qxc3 {[%clk 0:01:34]}  Rc8 {[%clk 0:00:22]} 22. Rad1 {[%clk 0:01:29]}  Qe8 {[%clk 0:00:10]} 23. Qd4 {[%clk 0:01:27]}  h5 {[%clk 0:00:09]} 24. h3 {[%clk 0:01:26]}  Nh6 {[%clk 0:00:09]} 25. Qd7 {[%clk 0:01:23]}  Qf8 {[%clk 0:00:07]} 26. Qxb7 {[%clk 0:01:21]}  Nf5 {[%clk 0:00:03]} 27. Qxa7 {[%clk 0:01:19]}  Qb4 {[%clk 0:00:02]} 28. Rd7 {[%clk 0:01:09]}  Rf8 {[%clk 0:00:02]} 29. Rb7 {[%clk 0:01:04]}  Qe4 {[%clk 0:00:02]} 30. Rb8 {[%clk 0:01:04]}  Rxb8 {[%clk 0:00:01]} 31. Qxb8+ {[%clk 0:01:05]}  Kh7 {[%clk 0:00:01]} 32. Rd1 {[%clk 0:00:20]}  Nxg3 {[%clk 0:00:01]} 33. Kh2 {[%clk 0:00:20]}  Ne2 {[%clk 0:00:01]} 34. Qb3 {[%clk 0:00:19]}  Qf4+ {[%clk 0:00:02]} 35. Kg2 {[%clk 0:00:20]}  Qxe5 {[%clk 0:00:02]} 36. Qe3 {[%clk 0:00:14]}  Nf4+ {[%clk 0:00:01]} 37. Kf3 {[%clk 0:00:13]}  Qf6 {[%clk 0:00:01]} 38. Qxf4 {[%clk 0:00:13]}  Qxb2 {[%clk 0:00:02]} 39. Qe4+ {[%clk 0:00:13]}  f5 {[%clk 0:00:01]} 40. Qxe6 {[%clk 0:00:12]}  Qa3+ {[%clk 0:00:01]} 41. Kg2 {[%clk 0:00:12]} 1-0


[Site "https://www.chess.com"]

[Event "Titled Tuesday Blitz April 25 Early 2023"]
[White "Omranalhosani21"]
[Black "Le, Tuan Minh"]
[BlackFideId "12401153"]
[WhiteElo "2765"]
[BlackElo "2566"]
[Result "0-1"]
[Round "03"]
[TimeControl "180+2"]
[Date "2023.04.25"]
[WhiteClock "0:00:02"]
[BlackClock "0:00:57"]

1. d4 {[%clk 0:03:00]}  d5 {[%clk 0:02:59]} 2. c4 {[%clk 0:03:00]}  c6 {[%clk 0:02:59]} 3. Nc3 {[%clk 0:03:00]}  Nf6 {[%clk 0:02:59]} 4. e3 {[%clk 0:02:58]}  a6 {[%clk 0:02:59]} 5. cxd5 {[%clk 0:02:57]}  cxd5 {[%clk 0:02:59]} 6. Nf3 {[%clk 0:02:58]}  Nc6 {[%clk 0:02:59]} 7. Bd3 {[%clk 0:02:58]}  Bg4 {[%clk 0:03:00]} 8. Qb3 {[%clk 0:02:51]}  Na5 {[%clk 0:02:57]} 9. Qc2 {[%clk 0:02:49]}  Bxf3 {[%clk 0:02:55]} 10. gxf3 {[%clk 0:02:50]}  e6 {[%clk 0:02:56]} 11. Bd2 {[%clk 0:02:48]}  Nc6 {[%clk 0:02:56]} 12. f4 {[%clk 0:02:48]}  Nb4 {[%clk 0:02:45]} 13. Qb1 {[%clk 0:02:48]}  Nxd3+ {[%clk 0:02:44]} 14. Qxd3 {[%clk 0:02:48]}  Rc8 {[%clk 0:02:44]} 15. f3 {[%clk 0:02:36]}  g6 {[%clk 0:02:36]} 16. O-O-O {[%clk 0:02:35]}  Be7 {[%clk 0:02:28]} 17. Kb1 {[%clk 0:02:35]}  O-O {[%clk 0:02:28]} 18. e4 {[%clk 0:02:35]}  Qd7 {[%clk 0:02:19]} 19. Rhg1 {[%clk 0:02:25]}  Rfd8 {[%clk 0:02:18]} 20. Be3 {[%clk 0:02:21]}  Bb4 {[%clk 0:02:17]} 21. Ne2 {[%clk 0:02:19]}  Rc6 {[%clk 0:01:57]} 22. f5 {[%clk 0:02:15]}  dxe4 {[%clk 0:01:56]} 23. fxe4 {[%clk 0:02:15]}  exf5 {[%clk 0:01:57]} 24. exf5 {[%clk 0:02:15]}  Nd5 {[%clk 0:01:56]} 25. Bc1 {[%clk 0:02:06]}  Rdc8 {[%clk 0:01:53]} 26. fxg6 {[%clk 0:01:45]}  fxg6 {[%clk 0:01:42]} 27. h4 {[%clk 0:01:43]}  Bf8 {[%clk 0:01:39]} 28. h5 {[%clk 0:01:41]}  Nb4 {[%clk 0:01:38]} 29. Qb3+ {[%clk 0:01:40]}  Kh8 {[%clk 0:01:27]} 30. a3 {[%clk 0:00:46]}  Qf5+ {[%clk 0:01:14]} 31. Ka1 {[%clk 0:00:46]}  Qd5 {[%clk 0:01:14]} 32. Qxd5 {[%clk 0:00:36]}  Nxd5 {[%clk 0:01:15]} 33. hxg6 {[%clk 0:00:37]}  hxg6 {[%clk 0:01:16]} 34. Bg5 {[%clk 0:00:27]}  Bg7 {[%clk 0:01:16]} 35. Nf4 {[%clk 0:00:20]}  Rd6 {[%clk 0:01:16]} 36. Nxd5 {[%clk 0:00:17]}  Rxd5 {[%clk 0:01:17]} 37. Be3 {[%clk 0:00:17]}  Rc6 {[%clk 0:01:16]} 38. Rg4 {[%clk 0:00:17]}  Re6 {[%clk 0:01:12]} 39. Rd3 {[%clk 0:00:15]}  Kh7 {[%clk 0:01:08]} 40. Ka2 {[%clk 0:00:15]}  b5 {[%clk 0:01:07]} 41. Bd2 {[%clk 0:00:16]}  Kg8 {[%clk 0:01:06]} 42. Bc3 {[%clk 0:00:15]}  Kf7 {[%clk 0:01:05]} 43. Rf3+ {[%clk 0:00:14]}  Rf6 {[%clk 0:01:05]} 44. Rfg3 {[%clk 0:00:14]}  Bf8 {[%clk 0:01:04]} 45. Rh3 {[%clk 0:00:13]}  Rh5 {[%clk 0:01:03]} 46. Rd3 {[%clk 0:00:12]}  Bd6 {[%clk 0:01:01]} 47. d5 {[%clk 0:00:11]}  Rff5 {[%clk 0:01:02]} 48. a4 {[%clk 0:00:07]}  Rxd5 {[%clk 0:01:00]} 49. Rxd5 {[%clk 0:00:07]}  Rxd5 {[%clk 0:01:01]} 50. axb5 {[%clk 0:00:08]}  axb5 {[%clk 0:01:01]} 51. Kb3 {[%clk 0:00:08]}  g5 {[%clk 0:01:01]} 52. Kc2 {[%clk 0:00:08]}  Kg6 {[%clk 0:01:01]} 53. Rg2 {[%clk 0:00:03]}  Bf4 {[%clk 0:01:00]} 54. b4 {[%clk 0:00:02]}  Kf5 {[%clk 0:01:01]} 55. Kb3 {[%clk 0:00:02]}  Ke4 {[%clk 0:01:01]} 56. Re2+ {[%clk 0:00:01]}  Kf3 {[%clk 0:01:00]} 57. Re8 {[%clk 0:00:01]}  g4 {[%clk 0:01:01]} 58. Be1 {[%clk 0:00:01]}  Re5 {[%clk 0:00:56]} 59. Rxe5 {[%clk 0:00:02]}  Bxe5 {[%clk 0:00:56]} 60. Kc2 {[%clk 0:00:02]}  Ke2 {[%clk 0:00:57]} 61. Bh4 {[%clk 0:00:02]}  g3 {[%clk 0:00:57]} 62. Bxg3 {[%clk 0:00:02]}  Bxg3 {[%clk 0:00:57]} 0-1


[Site "https://www.chess.com"]

[Event "Titled Tuesday Blitz April 25 Early 2023"]
[White "Moussard, Jules"]
[Black "Postny, Evgeny"]
[WhiteFideId "642908"]
[BlackFideId "2804344"]
[WhiteElo "2610"]
[BlackElo "2504"]
[Result "1-0"]
[Round "03"]
[TimeControl "180+2"]
[Date "2023.04.25"]
[WhiteClock "0:00:40"]
[BlackClock "0:00:03"]

1. e4 {[%clk 0:03:00]}  c5 {[%clk 0:02:54]} 2. Nf3 {[%clk 0:02:58]}  e6 {[%clk 0:02:55]} 3. b3 {[%clk 0:02:59]}  Nc6 {[%clk 0:02:54]} 4. Bb2 {[%clk 0:02:59]}  d6 {[%clk 0:02:54]} 5. d4 {[%clk 0:02:49]}  cxd4 {[%clk 0:02:54]} 6. Nxd4 {[%clk 0:02:50]}  Nf6 {[%clk 0:02:54]} 7. Nc3 {[%clk 0:02:50]}  Be7 {[%clk 0:02:53]} 8. Qd2 {[%clk 0:02:48]}  O-O {[%clk 0:02:53]} 9. O-O-O {[%clk 0:02:47]}  a6 {[%clk 0:02:50]} 10. f3 {[%clk 0:02:42]}  Qc7 {[%clk 0:02:48]} 11. Kb1 {[%clk 0:02:42]}  b5 {[%clk 0:02:44]} 12. g4 {[%clk 0:02:40]}  Nd7 {[%clk 0:02:38]} 13. h4 {[%clk 0:02:16]}  Nc5 {[%clk 0:02:36]} 14. g5 {[%clk 0:01:57]}  b4 {[%clk 0:02:31]} 15. Nce2 {[%clk 0:01:57]}  e5 {[%clk 0:02:15]} 16. Nf5 {[%clk 0:01:53]}  Rd8 {[%clk 0:02:12]} 17. Neg3 {[%clk 0:01:49]}  Bf8 {[%clk 0:02:10]} 18. h5 {[%clk 0:01:49]}  Be6 {[%clk 0:01:47]} 19. h6 {[%clk 0:01:44]}  g6 {[%clk 0:01:44]} 20. Ne3 {[%clk 0:01:45]}  a5 {[%clk 0:01:36]} 21. Nd5 {[%clk 0:01:42]}  Bxd5 {[%clk 0:01:35]} 22. exd5 {[%clk 0:01:42]}  Nb8 {[%clk 0:01:28]} 23. f4 {[%clk 0:01:32]}  Nbd7 {[%clk 0:01:27]} 24. Bb5 {[%clk 0:01:28]}  a4 {[%clk 0:01:25]} 25. Qxb4 {[%clk 0:01:06]}  Rdb8 {[%clk 0:01:16]} 26. Qc4 {[%clk 0:01:05]}  axb3 {[%clk 0:01:13]} 27. cxb3 {[%clk 0:01:05]}  Qa7 {[%clk 0:00:48]} 28. a4 {[%clk 0:01:02]}  Nb6 {[%clk 0:00:42]} 29. Qb4 {[%clk 0:00:56]}  Nbxa4 {[%clk 0:00:21]} 30. bxa4 {[%clk 0:00:57]}  Nxa4 {[%clk 0:00:21]} 31. Qxa4 {[%clk 0:00:57]}  Qxa4 {[%clk 0:00:20]} 32. Bxa4 {[%clk 0:00:58]}  Rxa4 {[%clk 0:00:21]} 33. fxe5 {[%clk 0:00:53]}  dxe5 {[%clk 0:00:17]} 34. d6 {[%clk 0:00:54]}  Rd8 {[%clk 0:00:10]} 35. Bxe5 {[%clk 0:00:51]}  Rb4+ {[%clk 0:00:06]} 36. Kc2 {[%clk 0:00:48]}  Rc8+ {[%clk 0:00:04]} 37. Kd3 {[%clk 0:00:49]}  Rb5 {[%clk 0:00:03]} 38. d7 {[%clk 0:00:42]}  Rd8 {[%clk 0:00:02]} 39. Ke4 {[%clk 0:00:42]}  Be7 {[%clk 0:00:02]} 40. Bc7 {[%clk 0:00:39]}  Rb4+ {[%clk 0:00:01]} 41. Kf3 {[%clk 0:00:39]}  Bxg5 {[%clk 0:00:02]} 42. Bxd8 {[%clk 0:00:39]}  Bxd8 {[%clk 0:00:03]} 43. Rhe1 {[%clk 0:00:40]} 1-0


[Site "https://www.chess.com"]